[Event "DSAM Bad Wildungen 2024"]
[Site "Bad Wildungen"]
[Date "2024.08.02"]
[Round "3.35"]
[White "Ferneding, Conrad"]
[Black "Lehmann, Michael"]
[Result "1-0"]
[Annotator "NA RC"]
[ECO "B12"]
[WhiteElo "1780"]
[BlackElo "1731"]
[PlyCount "64"]
[EventDate "2024.07.31"]
[EventCountry "GER"]
[SourceTitle "playchess.com"]
[Source "ChessBase"]
[SourceQuality "1"]
[TimeControl "40/5400+30:900+30"]

1. e4 {[%emt 0:00:04]} c6 {[%emt 0:00:11]} 2. d4 {[%emt 0:00:12]} d5 {[%emt 0:00:07]} 3. e5 {[%emt 0:00:04]} Bf5 {[%emt 0:00:16]} 4. h4 {[%emt 0:01:11]} h6 {[%emt 0:00:50]} 5. g4 {[%emt 0:00:49]} Be6 {[%emt 0:06:40]} 6. Nh3 {[%emt 0:03:49]} Qd7 {[%emt 0:05:26]} 7. f3 {[%emt 0:04:12]} h5 {[%emt 0:11:42]} 8. Nf4 {[%emt 0:01:42]} hxg4 {[%emt 0:00:34]} 9. Nxe6 {[%emt 0:00:08]} Qxe6 {[%emt 0:00:16]} 10. fxg4 {[%emt 0:00:07]} g6 {[%emt 0:00:30]} 11. g5 {[%emt 0:03:07]} Qc8 {[%emt 0:04:31]} 12. Nc3 {[%emt 0:04:45]} e6 {[%emt 0:01:41]} 13. Ne2 {[%emt 0:02:54]} Ne7 {[%emt 0:01:33]} 14. Be3 {[%emt 0:01:48]} Nf5 {[%emt 0:00:37]} 15. Bf2 {[%emt 0:00:06]} Nd7 {[%emt 0:00:34]} 16. Nf4 {[%emt 0:01:07]} c5 {[%emt 0:01:21]} 17. Bd3 {[%emt 0:09:37]} Ng7 {[%emt 0:13:01]} 18. c3 {[%emt 0:04:26]} Qc6 {[%emt 0:03:55]} 19. Nxg6 {[%emt 0:10:00]} fxg6 {[%emt 0:05:29]} 20. Bxg6+ {[%emt 0:00:06]} Kd8 {[%emt 0:00:19]} 21. h5 {[%emt 0:01:35]} Be7 {[%emt 0:06:37]} 22. Qg4 {[%emt 0:03:06]} Kc7 {[%emt 0:02:13]} 23. O-O-O {[%emt 0:03:21]} Raf8 {[%emt 0:00:29]} 24. Be3 {[%emt 0:01:27]} cxd4 {[%emt 0:07:24]} 25. Bxd4 {[%emt 0:04:33]} Nf5 {[%emt 0:01:07]} 26. Kb1 {[%emt 0:03:01]} Kb8 {[%emt 0:03:34]} 27. Bxf5 {[%emt 0:08:43]} Rxf5 {[%emt 0:02:14]} 28. g6 {[%emt 0:00:11]} Rg5 {[%emt 0:09:37]} 29. Qf4 {[%emt 0:05:47]} Rf5 {[%emt 0:05:03]} 30. g7 {[%emt 0:04:33]} Rg8 {[%emt 0:01:18]} 31. Qh6 {[%emt 0:00:37]} Qc8 {[%emt 0:00:35]} 32. Qxe6 {[%emt 0:01:33]} Qd8 {[%emt 0:06:46]} 1-0

[Event "DSAM Bad Wildungen 2024"]
[Site "Bad Wildungen"]
[Date "2024.08.02"]
[Round "3.36"]
[White "Lopez Fuertes, Victor"]
[Black "Doeding, Alexander"]
[Result "0-1"]
[Annotator "NA RC"]
[ECO "B06"]
[WhiteElo "1765"]
[BlackElo "1588"]
[PlyCount "52"]
[EventDate "2024.07.31"]
[EventCountry "GER"]
[SourceTitle "playchess.com"]
[Source "ChessBase"]
[SourceQuality "1"]
[TimeControl "40/5400+30:900+30"]

1. e4 {[%emt 0:04:05]} g6 {[%emt 0:00:13]} 2. d4 {[%emt 0:00:12]} Bg7 {[%emt 0:00:03]} 3. Nf3 {[%emt 0:00:12]} d6 {[%emt 0:00:09]} 4. h3 {[%emt 0:00:45]} c5 {[%emt 0:00:24]} 5. c3 {[%emt 0:00:22]} cxd4 {[%emt 0:00:38]} 6. Nxd4 {[%emt 0:00:31]} Nd7 {[%emt 0:01:22]} 7. Nb3 {[%emt 0:01:49]} Ngf6 {[%emt 0:00:55]} 8. Bd3 {[%emt 0:00:13]} O-O {[%emt 0:00:58]} 9. Qe2 {[%emt 0:01:31]} b6 {[%emt 0:01:54]} 10. Bf4 {[%emt 0:00:52]} Bb7 {[%emt 0:01:16]} 11. N1d2 {[%emt 0:00:17]} Rc8 {[%emt 0:05:59]} 12. Ba6 {[%emt 0:03:58]} Qc7 {[%emt 0:04:43]} 13. Bxb7 {[%emt 0:00:45]} Qxb7 {[%emt 0:00:25]} 14. O-O {[%emt 0:00:19]} Nc5 {[%emt 0:10:57]} 15. Rfe1 {[%emt 0:06:31]} d5 {[%emt 0:11:11]} 16. e5 {[%emt 0:13:18]} Nfe4 {[%emt 0:02:06]} 17. Rab1 {[%emt 0:04:29]} f6 {[%emt 0:10:19]} 18. Nxc5 {[%emt 0:06:43]} Nxc5 {[%emt 0:00:28]} 19. exf6 {[%emt 0:03:43]} Bxf6 {[%emt 0:01:33]} 20. Be5 {[%emt 0:02:38]} Qc6 {[%emt 0:03:32]} 21. Nb3 {[%emt 0:04:17]} Bxe5 {[%emt 0:04:14]} 22. Qxe5 {[%emt 0:00:37]} Nd3 {[%emt 0:00:42]} 23. Qe6+ {[%emt 0:00:07]} Qxe6 {[%emt 0:00:23]} 24. Rxe6 {[%emt 0:00:09]} Rxf2 {[%emt 0:07:00]} 25. Rxe7 {[%emt 0:00:19]} Rxb2 {[%emt 0:00:21]} 26. Rxa7 {[%emt 0:00:50]} Rxb1+ {[%emt 0:01:55]} 0-1

[Event "DSAM Bad Wildungen 2024"]
[Site "Bad Wildungen"]
[Date "2024.08.02"]
[Round "3.37"]
[White "Doehn, Friedemann"]
[Black "Shanmuganathan, Adhav"]
[Result "1-0"]
[Annotator "NA RC"]
[ECO "A03"]
[WhiteElo "1776"]
[BlackElo "1659"]
[PlyCount "58"]
[EventDate "2024.07.31"]
[EventCountry "GER"]
[SourceTitle "playchess.com"]
[Source "ChessBase"]
[SourceQuality "1"]
[TimeControl "40/5400+30:900+30"]

1. f4 {[%emt 0:02:48]} d5 {[%emt 0:00:27]} 2. Nf3 {[%emt 0:00:12]} c5 {[%emt 0:00:09]} 3. e3 {[%emt 0:00:16]} Nc6 {[%emt 0:00:11]} 4. Bb5 {[%emt 0:02:30]} Bd7 {[%emt 0:00:54]} 5. b3 {[%emt 0:00:44]} a6 {[%emt 0:00:39]} 6. Bxc6 {[%emt 0:00:30]} Bxc6 {[%emt 0:00:33]} 7. Bb2 {[%emt 0:00:32]} f6 {[%emt 0:00:42]} 8. O-O {[%emt 0:00:47]} e6 {[%emt 0:01:09]} 9. d3 {[%emt 0:01:41]} Nh6 {[%emt 0:01:23]} 10. Nbd2 {[%emt 0:01:56]} Bd6 {[%emt 0:01:36]} 11. Ng5 {[%emt 0:09:38]} Qd7 {[%emt 0:05:52]} 12. Ngf3 {[%emt 0:00:57]} Nf7 {[%emt 0:01:36]} 13. d4 {[%emt 0:02:15]} Rg8 {[%emt 0:03:15]} 14. c4 {[%emt 0:01:26]} g5 {[%emt 0:01:42]} 15. cxd5 {[%emt 0:01:37]} exd5 {[%emt 0:00:56]} 16. dxc5 {[%emt 0:01:15]} Bxc5 {[%emt 0:00:27]} 17. Nd4 {[%emt 0:01:52]} gxf4 {[%emt 0:00:57]} 18. Rxf4 {[%emt 0:01:29]} Qh3 {[%emt 0:01:17]} 19. Qe2 {[%emt 0:06:02]} Bd6 {[%emt 0:00:42]} 20. Kh1 {[%emt 0:01:04]} Qd7 {[%emt 0:09:21]} 21. Rxf6 {[%emt 0:01:59]} Be5 {[%emt 0:01:48]} 22. Re6+ {[%emt 0:06:39]} Kf8 {[%emt 0:01:44]} 23. Rxe5 {[%emt 0:10:46]} Nxe5 {[%emt 0:00:29]} 24. Nxc6 {[%emt 0:01:19]} Nxc6 {[%emt 0:00:35]} 25. Rf1+ {[%emt 0:00:25]} Ke8 {[%emt 0:00:35]} 26. Qh5+ {[%emt 0:07:32]} Kd8 {[%emt 0:00:49]} 27. Rf7 {[%emt 0:03:56]} Qe6 {[%emt 0:05:24]} 28. Qxh7 {[%emt 0:02:46]} Re8 {[%emt 0:03:38]} 29. Bf6+ {[%emt 0:04:18]} Re7 {[%emt 0:00:54]} 1-0

[Event "DSAM Bad Wildungen 2024"]
[Site "Bad Wildungen"]
[Date "2024.08.02"]
[Round "3.38"]
[White "Geier, Jakob"]
[Black "Noll, Raphael"]
[Result "1-0"]
[Annotator "NA RC"]
[ECO "C29"]
[WhiteElo "1664"]
[BlackElo "1611"]
[PlyCount "69"]
[EventDate "2024.07.31"]
[EventCountry "GER"]
[SourceTitle "playchess.com"]
[Source "ChessBase"]
[SourceQuality "1"]
[TimeControl "40/5400+30:900+30"]

1. e4 {[%emt 0:00:01]} e5 {[%emt 0:00:04]} 2. Nc3 {[%emt 0:00:07]} Nf6 {[%emt 0:00:07]} 3. f4 {[%emt 0:00:01]} d5 {[%emt 0:00:24]} 4. fxe5 {[%emt 0:00:01]} Nxe4 {[%emt 0:00:14]} 5. Qf3 {[%emt 0:00:02]} Nxc3 {[%emt 0:00:59]} 6. bxc3 {[%emt 0:01:27]} Be6 {[%emt 0:06:45]} 7. Rb1 {[%emt 0:00:16]} b6 {[%emt 0:03:44]} 8. Nh3 {[%emt 0:00:43]} Qh4+ {[%emt 0:08:52]} 9. g3 {[%emt 0:02:04]} Qe4+ {[%emt 0:05:54]} 10. Qxe4 {[%emt 0:00:01]} dxe4 {[%emt 0:00:15]} 11. Nf4 {[%emt 0:03:14]} Bf5 {[%emt 0:02:04]} 12. Bg2 {[%emt 0:04:18]} Nd7 {[%emt 0:02:55]} 13. d4 {[%emt 0:01:03]} O-O-O {[%emt 0:06:33]} 14. O-O {[%emt 0:02:24]} f6 {[%emt 0:05:58]} 15. e6 {[%emt 0:43:24]} Nb8 {[%emt 0:02:37]} 16. g4 {[%emt 0:00:55]} Bxg4 {[%emt 0:12:56]} 17. Bxe4 {[%emt 0:00:59]} f5 {[%emt 0:03:04]} 18. Bg2 {[%emt 0:07:03]} g5 {[%emt 0:02:13]} 19. h3 {[%emt 0:02:58]} gxf4 {[%emt 0:01:58]} 20. hxg4 {[%emt 0:00:01]} fxg4 {[%emt 0:01:08]} 21. Bxf4 {[%emt 0:02:26]} h5 {[%emt 0:03:36]} 22. Bg5 {[%emt 0:08:05]} Re8 {[%emt 0:00:39]} 23. Rbe1 {[%emt 0:01:42]} Be7 {[%emt 0:02:00]} 24. Bxe7 {[%emt 0:03:07]} Rxe7 {[%emt 0:00:06]} 25. Rf7 {[%emt 0:01:30]} Kd8 {[%emt 0:00:42]} 26. d5 {[%emt 0:00:58]} h4 {[%emt 0:03:21]} 27. Ref1 {[%emt 0:01:46]} Ke8 {[%emt 0:13:08]} 28. Be4 {[%emt 0:01:26]} Rxf7 {[%emt 0:07:04]} 29. Rxf7 {[%emt 0:03:22]} Rf8 {[%emt 0:00:35]} 30. Rxc7 {[%emt 0:01:04]} Rf4 {[%emt 0:01:41]} 31. Bg6+ {[%emt 0:00:23]} Kf8 {[%emt 0:00:21]} 32. e7+ {[%emt 0:00:11]} Kg7 {[%emt 0:00:25]} 33. e8=Q+ {[%emt 0:00:11]} Kh6 {[%emt 0:00:15]} 34. Qh8+ {[%emt 0:00:53]} Kg5 {[%emt 0:00:29]} 35. Qe5+ {[%emt 0:00:33]} 1-0

[Event "DSAM Bad Wildungen 2024"]
[Site "Bad Wildungen"]
[Date "2024.08.02"]
[Round "3.39"]
[White "Sniegowski, Richard"]
[Black "Karlinder, Lovis Neo"]
[Result "1-0"]
[Annotator "NA RC"]
[ECO "B10"]
[WhiteElo "1695"]
[BlackElo "1659"]
[PlyCount "51"]
[EventDate "2024.07.31"]
[EventCountry "GER"]
[SourceTitle "playchess.com"]
[Source "ChessBase"]
[SourceQuality "1"]
[TimeControl "40/5400+30:900+30"]

1. e4 {[%emt 0:00:05]} c6 {[%emt 0:00:15]} 2. Nf3 {[%emt 0:00:16]} d5 {[%emt 0:00:15]} 3. exd5 {[%emt 0:00:05]} cxd5 {[%emt 0:00:10]} 4. Ne5 {[%emt 0:00:05]} Nf6 {[%emt 0:00:11]} 5. d4 {[%emt 0:00:06]} g6 {[%emt 0:00:15]} 6. Nd2 {[%emt 0:00:16]} Bg7 {[%emt 0:00:22]} 7. Ndf3 {[%emt 0:00:19]} O-O {[%emt 0:00:26]} 8. Bd3 {[%emt 0:01:35]} Nc6 {[%emt 0:01:07]} 9. c3 {[%emt 0:00:16]} Ne4 {[%emt 0:18:51]} 10. h4 {[%emt 0:00:24]} h6 {[%emt 0:08:47]} 11. Qc2 {[%emt 0:01:15]} Nd6 {[%emt 0:12:40]} 12. Bf4 {[%emt 0:13:59]} Qe8 {[%emt 0:09:48]} 13. Qc1 {[%emt 0:00:46]} h5 {[%emt 0:07:53]} 14. Bh6 {[%emt 0:02:53]} Bf5 {[%emt 0:02:51]} 15. Bxg7 {[%emt 0:07:03]} Kxg7 {[%emt 0:00:48]} 16. Bxf5 {[%emt 0:00:05]} Nxf5 {[%emt 0:00:38]} 17. g4 {[%emt 0:00:44]} Nxe5 {[%emt 0:04:37]} 18. Nxe5 {[%emt 0:00:30]} hxg4 {[%emt 0:02:57]} 19. Nxg4 {[%emt 0:00:46]} Rh8 {[%emt 0:05:39]} 20. h5 {[%emt 0:00:05]} Nh6 {[%emt 0:08:00]} 21. Nxh6 {[%emt 0:02:43]} Rxh6 {[%emt 0:00:22]} 22. Qg5 {[%emt 0:00:06]} Qd7 {[%emt 0:03:17]} 23. O-O-O {[%emt 0:01:13]} Rah8 {[%emt 0:02:15]} 24. Rdg1 {[%emt 0:02:36]} Kf8 {[%emt 0:01:21]} 25. hxg6 {[%emt 0:00:56]} Rxh1 {[%emt 0:01:39]} 26. g7+ {[%emt 0:00:06]} 1-0

[Event "DSAM Bad Wildungen 2024"]
[Site "Bad Wildungen"]
[Date "2024.08.02"]
[Round "3.40"]
[White "Ihlenfeld, Felix"]
[Black "Klar, Ennio"]
[Result "0-1"]
[Annotator "NA RC"]
[ECO "A03"]
[WhiteElo "1673"]
[BlackElo "1781"]
[PlyCount "66"]
[EventDate "2024.07.31"]
[EventCountry "GER"]
[SourceTitle "playchess.com"]
[Source "ChessBase"]
[SourceQuality "1"]
[TimeControl "40/5400+30:900+30"]

1. f4 {[%emt 0:00:01]} d5 {[%emt 1:31:00]} 2. e3 {[%emt 0:00:04]} Nc6 {[%emt 0:00:00]} 3. Nf3 {[%emt 0:00:08]} e6 {[%emt 0:00:00]} 4. b3 {[%emt 0:00:45]} b6 {[%emt 0:00:00]} 5. Bb2 {[%emt 0:00:07]} Bb7 {[%emt 0:00:00]} 6. Bb5 {[%emt 0:00:09]} a6 {[%emt 0:00:00]} 7. Bxc6+ {[%emt 0:00:09]} Bxc6 {[%emt 0:00:00]} 8. O-O {[%emt 0:00:22]} Nf6 {[%emt 0:00:00]} 9. Nc3 {[%emt 0:03:38]} Be7 {[%emt 0:00:00]} 10. Qe1 {[%emt 0:01:09]} g6 {[%emt 0:00:00]} 11. Ne5 {[%emt 0:06:35]} Bb7 {[%emt 0:00:00]} 12. Ne2 {[%emt 0:00:43]} Rf8 {[%emt 0:00:00]} 13. Nd4 {[%emt 0:03:12]} c5 {[%emt 0:00:00]} 14. Ndc6 {[%emt 0:06:23]} Bxc6 {[%emt 0:00:00]} 15. Nxc6 {[%emt 0:00:06]} Qc7 {[%emt 0:00:00]} 16. Nxe7 {[%emt 0:00:33]} Qxe7 {[%emt 0:00:00]} 17. d3 {[%emt 0:01:52]} Nd7 {[%emt 0:00:00]} 18. Qg3 {[%emt 0:03:19]} O-O-O {[%emt 0:00:00]} 19. Rf2 {[%emt 0:07:31]} f5 {[%emt 0:00:00]} 20. Qf3 {[%emt 0:09:45]} Nf6 {[%emt 0:00:00]} 21. h3 {[%emt 0:00:46]} Qd7 {[%emt 0:00:00]} 22. a4 {[%emt 0:07:36]} a5 {[%emt 0:00:00]} 23. g4 {[%emt 0:06:36]} h6 {[%emt 0:00:00]} 24. Be5 {[%emt 0:08:21]} fxg4 {[%emt 0:00:00]} 25. hxg4 {[%emt 0:00:15]} g5 {[%emt 0:00:00]} 26. Qh1 {[%emt 0:08:57]} Nxg4 {[%emt 0:00:00]} 27. Rg2 {[%emt 0:01:11]} Nxe3 {[%emt 0:00:00]} 28. Re2 {[%emt 0:01:24]} gxf4 {[%emt 0:00:00]} 29. c4 {[%emt 0:03:30]} Rg8+ {[%emt 0:00:00]} 30. Kf2 {[%emt 0:00:44]} Ng4+ {[%emt 0:00:00]} 31. Kf3 {[%emt 0:00:07]} Nxe5+ {[%emt 0:00:00]} 32. Rxe5 {[%emt 0:00:05]} dxc4 {[%emt 0:00:00]} 33. Kxf4 {[%emt 0:00:39]} Rdf8+ {[%emt 0:00:00]} 0-1

[Event "DSAM Bad Wildungen 2024"]
[Site "Bad Wildungen"]
[Date "2024.08.02"]
[Round "3.42"]
[White "Schuetz, Markus"]
[Black "Heutling, Thomas"]
[Result "1/2-1/2"]
[Annotator "NA"]
[ECO "A53"]
[WhiteElo "1512"]
[BlackElo "1633"]
[PlyCount "115"]
[EventDate "2024.07.31"]
[EventCountry "GER"]
[SourceTitle "playchess.com"]
[Source "ChessBase"]
[SourceQuality "1"]
[TimeControl "40/5400+30:900+30"]

1. d4 {[%emt 0:00:03]} Nf6 {[%emt 0:00:15]} 2. c4 {[%emt 0:00:12]} d6 {[%emt 0:01:08]} 3. Nc3 {[%emt 0:02:07]} Nbd7 {[%emt 0:01:06]} 4. e4 {[%emt 0:03:16]} e5 {[%emt 0:01:03]} 5. d5 {[%emt 0:00:28]} c6 {[%emt 0:01:07]} 6. Bd3 {[%emt 0:04:31]} Be7 {[%emt 0:02:50]} 7. Nge2 {[%emt 0:03:47]} Nc5 {[%emt 0:06:07]} 8. Be3 {[%emt 0:06:17]} Nxd3+ {[%emt 0:05:12]} 9. Qxd3 {[%emt 0:00:09]} O-O {[%emt 0:00:37]} 10. O-O {[%emt 0:03:04]} Ng4 {[%emt 0:04:35]} 11. Bd2 {[%emt 0:07:19]} f5 {[%emt 0:13:19]} 12. f3 {[%emt 0:18:22]} Qb6+ {[%emt 0:06:34]} 13. Kh1 {[%emt 0:03:35]} Nf2+ {[%emt 0:02:48]} 14. Rxf2 {[%emt 0:00:11]} Qxf2 {[%emt 0:00:02]} 15. Be3 {[%emt 0:05:45]} Qh4 {[%emt 0:01:36]} 16. Rf1 {[%emt 0:02:45]} f4 {[%emt 0:11:51]} 17. Bd2 {[%emt 0:04:03]} Rf6 {[%emt 0:06:13]} 18. Be1 {[%emt 0:01:06]} Qh5 {[%emt 0:03:26]} 19. g4 {[%emt 0:06:19]} fxg3 {[%emt 0:07:32]} 20. Bxg3 {[%emt 0:00:12]} Bh3 {[%emt 0:01:21]} 21. Rf2 {[%emt 0:00:30]} Raf8 {[%emt 0:00:39]} 22. Ng1 {[%emt 0:00:06]} Rg6 {[%emt 0:06:34]} 23. Nce2 {[%emt 0:01:25]} Bd7 {[%emt 0:06:01]} 24. f4 {[%emt 0:07:23]} Rxg3 {[%emt 0:04:39]} 25. Nxg3 {[%emt 0:00:32]} Qg4 {[%emt 0:06:25]} 26. Qf1 {[%emt 0:04:03]} exf4 {[%emt 0:00:00]} 27. N3e2 {[%emt 0:01:53]} Bg5 {[%emt 0:00:00]} 28. Nf3 {[%emt 0:00:36]} Bh6 {[%emt 0:00:00]} 29. Rg2 {[%emt 0:02:59]} Qh5 {[%emt 0:00:00]} 30. Neg1 {[%emt 0:02:42]} g5 {[%emt 0:00:05]} 31. Qe1 {[%emt 0:05:50]} g4 {[%emt 0:01:03]} 32. Qh4 {[%emt 0:01:28]} Qxh4 {[%emt 0:00:29]} 33. Nxh4 {[%emt 0:00:03]} Kh8 {[%emt 0:00:32]} 34. h3 gxh3 {[%emt 0:00:17]} 35. Rf2 {[%emt 0:00:44]} Bg5 {[%emt 0:00:40]} 36. Nhf3 {[%emt 0:00:08]} Bf6 {[%emt 0:00:20]} 37. Kh2 {[%emt 0:00:12]} c5 {[%emt 0:01:03]} 38. Nxh3 {[%emt 0:00:08]} Bxh3 {[%emt 0:00:27]} 39. Kxh3 {[%emt 0:00:05]} Rg8 {[%emt 0:00:23]} 40. b3 {[%emt 0:00:39]} Rg3+ {[%emt 0:00:51]} 41. Kh2 {[%emt 0:15:08]} Kg7 {[%emt 0:16:08]} 42. Rg2 {[%emt 0:01:13]} Rxg2+ {[%emt 0:00:00]} 43. Kxg2 {[%emt 0:00:00]} h5 {[%emt 0:00:00]} 44. Kh3 {[%emt 0:00:00]} a5 {[%emt 0:00:00]} 45. Ne1 {[%emt 0:00:00]} Kg6 {[%emt 0:00:00]} 46. Nf3 {[%emt 0:00:00]} b6 {[%emt 0:00:00]} 47. Ne1 {[%emt 0:00:00]} Bg5 {[%emt 0:00:00]} 48. Nf3 {[%emt 0:00:00]} Kf6 {[%emt 0:00:00]} 49. Kg2 {[%emt 0:00:00]} Kg6 50. Kh3 {[%emt 0:00:00]} Bf6 {[%emt 0:00:00]} 51. Kg2 {[%emt 0:00:00]} h4 {[%emt 0:00:00]} 52. Kh3 {[%emt 0:00:00]} Kh5 {[%emt 0:01:13]} 53. Ne1 {[%emt 0:00:00]} Bd8 {[%emt 0:01:09]} 54. Nf3 {[%emt 0:00:00]} b5 {[%emt 0:00:50]} 55. Nd2 {[%emt 0:00:00]} a4 56. b4 {[%emt 0:00:02]} Ba5 {[%emt 0:01:36]} 57. Nf3 {[%emt 0:00:09]} bxc4 {[%emt 0:00:28]} 58. Nd2 {[%emt 0:13:01]} 1/2-1/2

[Event "DSAM Bad Wildungen 2024"]
[Site "Bad Wildungen"]
[Date "2024.08.02"]
[Round "3.43"]
[White "Roessling, Laura Marie"]
[Black "Segermann, Nils"]
[Result "0-1"]
[Annotator "NA RC"]
[ECO "B34"]
[WhiteElo "1597"]
[BlackElo "1780"]
[PlyCount "92"]
[EventDate "2024.07.31"]
[EventCountry "GER"]
[SourceTitle "playchess.com"]
[Source "ChessBase"]
[SourceQuality "1"]
[TimeControl "40/5400+30:900+30"]

1. e4 {[%emt 0:00:03]} c5 {[%emt 0:00:07]} 2. Nf3 {[%emt 0:00:30]} Nc6 {[%emt 0:00:06]} 3. d4 {[%emt 0:00:26]} cxd4 {[%emt 0:00:06]} 4. Nxd4 {[%emt 0:01:12]} g6 {[%emt 0:00:07]} 5. Nc3 {[%emt 0:01:47]} Bg7 {[%emt 0:00:05]} 6. Be3 {[%emt 0:00:56]} a6 {[%emt 0:00:50]} 7. Qd2 {[%emt 0:12:06]} d6 {[%emt 0:00:06]} 8. Nb3 {[%emt 0:06:40]} Nf6 {[%emt 0:00:05]} 9. f3 {[%emt 0:05:35]} Be6 {[%emt 0:00:10]} 10. Nd4 {[%emt 0:08:54]} Bd7 {[%emt 0:00:33]} 11. Be2 {[%emt 0:03:28]} b5 {[%emt 0:03:41]} 12. a3 {[%emt 0:09:15]} Qc8 {[%emt 0:01:58]} 13. O-O {[%emt 0:01:59]} O-O {[%emt 0:00:40]} 14. a4 {[%emt 0:04:46]} b4 {[%emt 0:00:13]} 15. Nxc6 {[%emt 0:00:57]} Bxc6 {[%emt 0:03:28]} 16. Na2 {[%emt 0:01:43]} a5 {[%emt 0:00:15]} 17. Nc1 {[%emt 0:03:10]} Nd7 {[%emt 0:00:05]} 18. Bd4 {[%emt 0:00:54]} Qb7 {[%emt 0:03:21]} 19. Bxg7 {[%emt 0:01:55]} Kxg7 {[%emt 0:00:01]} 20. Nd3 {[%emt 0:01:39]} Rfd8 {[%emt 0:00:11]} 21. h4 {[%emt 0:03:22]} h5 {[%emt 0:00:13]} 22. Nf2 {[%emt 0:01:00]} d5 {[%emt 0:00:14]} 23. exd5 {[%emt 0:01:16]} Bxd5 {[%emt 0:00:28]} 24. Qd4+ {[%emt 0:00:40]} e5 {[%emt 0:00:15]} 25. Qe3 {[%emt 0:00:50]} Qb6 {[%emt 0:00:37]} 26. Qc1 {[%emt 0:02:19]} Nf6 {[%emt 0:00:21]} 27. c4 {[%emt 0:01:45]} bxc3 {[%emt 0:03:06]} 28. Qxc3 {[%emt 0:00:35]} e4 {[%emt 0:00:43]} 29. fxe4 {[%emt 0:01:25]} Rac8 {[%emt 0:00:52]} 30. Qg3 {[%emt 0:05:02]} Nxe4 {[%emt 0:00:16]} 31. Qf4 {[%emt 0:02:02]} Rc6 {[%emt 0:01:07]} 32. Bf3 {[%emt 0:03:39]} Nxf2 {[%emt 0:02:37]} 33. Rxf2 {[%emt 0:01:16]} Rf6 {[%emt 0:00:44]} 34. Qe5 {[%emt 0:01:20]} Bxf3 {[%emt 0:00:20]} 35. gxf3 {[%emt 0:00:47]} Rd4 {[%emt 0:01:08]} 36. Qb5 {[%emt 0:04:33]} Qa7 {[%emt 0:00:35]} 37. Qe5 {[%emt 0:01:28]} Rdf4 {[%emt 0:01:36]} 38. Ra3 {[%emt 0:02:21]} R4f5 {[%emt 0:00:52]} 39. Qe4 {[%emt 0:01:07]} Rf4 {[%emt 0:00:24]} 40. Qe5 {[%emt 0:00:09]} Rxh4 {[%emt 0:00:19]} 41. Kg2 {[%emt 0:16:38]} Rhf4 {[%emt 0:15:53]} 42. Kf1 {[%emt 0:03:16]} Rb4 {[%emt 0:01:15]} 43. Rd2 {[%emt 0:00:00]} Qa6+ {[%emt 0:00:00]} 44. Re2 {[%emt 0:00:00]} Kh7 {[%emt 0:00:00]} 45. Kf2 {[%emt 0:00:00]} Qb6+ {[%emt 0:00:00]} 46. Kg2 {[%emt 0:00:00]} Re6 {[%emt 0:00:00]} 0-1

[Event "DSAM Bad Wildungen 2024"]
[Site "Bad Wildungen"]
[Date "2024.08.02"]
[Round "3.46"]
[White "Aguike, Oka"]
[Black "Voskanyan, Artur S."]
[Result "0-1"]
[Annotator "NA"]
[ECO "C50"]
[WhiteElo "1585"]
[BlackElo "1508"]
[PlyCount "102"]
[EventDate "2024.07.31"]
[EventCountry "GER"]
[SourceTitle "playchess.com"]
[Source "ChessBase"]
[SourceQuality "1"]
[TimeControl "40/5400+30:900+30"]

1. e4 {[%emt 0:00:18]} e5 {[%emt 0:00:20]} 2. Nf3 {[%emt 0:00:27]} Nc6 {[%emt 0:00:06]} 3. Bc4 {[%emt 0:00:48]} Nf6 {[%emt 0:00:25]} 4. d3 {[%emt 0:00:37]} Bc5 {[%emt 0:00:19]} 5. O-O {[%emt 0:00:37]} d6 {[%emt 0:00:35]} 6. Nc3 {[%emt 0:02:26]} Bg4 {[%emt 0:01:36]} 7. h3 {[%emt 0:03:46]} Bh5 {[%emt 0:01:27]} 8. g4 {[%emt 0:01:58]} Nxg4 {[%emt 0:10:06]} 9. hxg4 {[%emt 0:07:14]} Bxg4 {[%emt 0:01:58]} 10. Bg5 {[%emt 0:03:34]} Bxf3 {[%emt 0:03:11]} 11. Bxd8 {[%emt 0:01:11]} Bxd1 {[%emt 0:00:12]} 12. Raxd1 {[%emt 0:01:45]} Rxd8 {[%emt 0:01:45]} 13. Nd5 {[%emt 0:06:01]} Bb6 {[%emt 0:05:04]} 14. a3 {[%emt 0:07:56]} Ne7 {[%emt 0:07:38]} 15. Ne3 {[%emt 0:07:16]} Bxe3 {[%emt 0:10:26]} 16. fxe3 {[%emt 0:00:57]} Rf8 {[%emt 0:00:13]} 17. d4 {[%emt 0:01:41]} d5 {[%emt 0:07:14]} 18. exd5 {[%emt 0:02:12]} Nxd5 {[%emt 0:11:06]} 19. Rd3 {[%emt 0:05:33]} e4 {[%emt 0:08:15]} 20. Rb3 {[%emt 0:01:12]} Nb6 {[%emt 0:07:36]} 21. Be2 {[%emt 0:03:37]} c6 {[%emt 0:00:56]} 22. Rf5 {[%emt 0:03:16]} Kd7 {[%emt 0:02:39]} 23. c4 {[%emt 0:04:21]} Kc7 {[%emt 0:02:29]} 24. c5 {[%emt 0:05:52]} Nd5 {[%emt 0:01:13]} 25. Bc4 {[%emt 0:02:37]} g6 {[%emt 0:01:27]} 26. Re5 {[%emt 0:03:18]} Rfe8 {[%emt 0:03:14]} 27. Bxd5 {[%emt 0:05:32]} Rxe5 {[%emt 0:01:06]} 28. Bxf7 {[%emt 0:05:26]} Rf5 {[%emt 0:00:59]} 29. Be6 {[%emt 0:01:09]} Rf6 {[%emt 0:00:40]} 30. Bc4 {[%emt 0:01:24]} h5 {[%emt 0:01:04]} 31. Rc3 {[%emt 0:00:43]} Rdf8 {[%emt 0:03:14]} 32. Rc2 {[%emt 0:00:13]} Rf3 {[%emt 0:01:00]} 33. Re2 {[%emt 0:02:14]} Rg3+ {[%emt 0:00:48]} 34. Kh2 {[%emt 0:00:34]} Rff3 {[%emt 0:00:25]} 35. d5 {[%emt 0:01:06]} Rxe3 {[%emt 0:03:06]} 36. d6+ {[%emt 0:00:58]} Kd7 {[%emt 0:00:30]} 37. Rf2 {[%emt 0:02:17]} Rh3+ {[%emt 0:01:17]} 38. Kg2 {[%emt 0:00:43]} Reg3+ {[%emt 0:00:10]} 39. Kf1 {[%emt 0:00:11]} Rf3 {[%emt 0:00:13]} 40. Kg2 {[%emt 0:01:12]} Rxf2+ {[%emt 0:00:24]} 41. Kxf2 {[%emt 0:16:00]} Rh2+ {[%emt 0:15:11]} 42. Ke3 {[%emt 0:00:11]} Rxb2 {[%emt 0:00:16]} 43. Kxe4 {[%emt 0:00:19]} Rc2 {[%emt 0:01:04]} 44. Kd4 {[%emt 0:01:26]} Rxc4+ {[%emt 0:00:11]} 45. Kxc4 {[%emt 0:00:14]} h4 {[%emt 0:00:11]} 46. a4 {[%emt 0:01:27]} h3 {[%emt 0:00:17]} 47. a5 {[%emt 0:00:21]} a6 {[%emt 0:00:08]} 48. Kd4 {[%emt 0:00:22]} h2 {[%emt 0:00:06]} 49. Ke5 {[%emt 0:00:09]} h1=Q {[%emt 0:00:13]} 50. Kf6 {[%emt 0:00:14]} Qd5 {[%emt 0:00:37]} 51. Kxg6 {[%emt 0:00:20]} Qxc5 {[%emt 0:00:08]} 0-1